Cogmind - Beta 14 @@@ ROGUE MODE // 2024.12.14 @ 01:43:44 Player: Occam Result: Destroyed by D-53 Grenadier with Mini Grenade Launcher Performance ------------- Evolutions (0) 0 Regions Visited (2) 400 Robots Destroyed (26) 130 Value Destroyed (372) 372 Prototype IDs (2) 40 Alien Tech Used (0) 0 Bonus (0) 0 TOTAL SCORE: 942 Bonus ------- None Cogmind --------- Core Integrity 0/250 Matter 290/300 Energy 17/100 System Corruption 8% Temperature Cool (0) Movement Rolling (115) Ox1 Location -10/Mines Parts ------- > --- POWER (1) -------- (None) > --- PROPULSION (2) --- Compact Wheel > --- UTILITY (2) ------ Large Storage Unit > --- WEAPON (2) ------- Beam Rifle > --- INVENTORY (15) --- Compact Wheel Improved Heat Sink Small Storage Unit Huge Storage Unit Large Matter Pod (150) Hardened Light Armor Plating Hardened Light Armor Plating Beam Rifle Assault Rifle Rocket Launcher Rocket Launcher Datajack Mace Peak State ------------ > --- POWER ------------ Ion Engine > --- PROPULSION ------- Light Treads Light Treads > --- UTILITY ---------- Large Storage Unit Structural Scanner > --- WEAPON ----------- Light EM Pulse Cannon Light EM Pulse Cannon > --- INVENTORY -------- Compact Wheel Compact Wheel Small Storage Unit Huge Storage Unit Large Matter Pod Targeting Computer Hardened Light Armor Plating Beam Rifle Beam Rifle Assault Rifle Rocket Launcher Rocket Launcher Datajack Mace [Rating: 11] Favorites ----------- Power Ion Engine Engine Ion Engine Propulsion Light Treads Treads Light Treads Leg Aluminum Leg Wheel Compact Wheel Utility Small Storage Unit Device Structural Scanner Storage Small Storage Unit Weapon Light EM Pulse Cannon Energy Gun Beam Rifle Energy Cannon Light EM Pulse Cannon Build | -11 -10 -10 ------- Run | Yrd Mat Min Slots Evolved . | . . . Power . | . . . Propulsion . | . . . Utility . | . . . Weapon . | . . . Parts Attached 14 | 1 11 2 Power 1 | . 1 . Engine 1 | . 1 . Core . | . . . Reactor . | . . . Propulsion 3 | . 2 1 Treads 2 | . 2 . Leg . | . . . Wheel 1 | . . 1 Hover . | . . . Flight . | . . . Utility 4 | 1 3 . Device 2 | 1 1 . Storage 2 | . 2 . Processor . | . . . Hackware . | . . . Protection . | . . . Artifact . | . . . Weapon 6 | . 5 1 Energy Gun 4 | . 3 1 Energy Cannon 2 | . 2 . Ballistic Gun . | . . . Ballistic Cannon . | . . . Launcher . | . . . Special Weapon . | . . . Impact Weapon . | . . . Slashing Weapon . | . . . Piercing Weapon . | . . . Special Melee Weapon . | . . . Unidentified Prototypes . | . . . Parts Lost 7 | . 1 6 Power 1 | . . 1 Propulsion 2 | . . 2 Utility 2 | . 1 1 Weapon 2 | . . 2 Highest Loss Streak 6 | . 1 6 To Critical Strikes . | . . . Average Slot Usage (%) 99 | . 100 97 Engine 13 | . 14 13 Treads 25 | . 25 28 Leg 2 | . 2 . Device 14 | . 14 14 Storage 14 | . 14 14 Energy Gun 14 | . 15 . Energy Cannon 13 | . 12 25 Peak Build Rating 11 | 7 11 11 Average Rating 9 | 6 9 10 On Entrance 8 | 6 7 11 Naked Turns . | . . . Heaviest Build 34 | 12 34 34 Greatest Support 40 | 20 40 40 Greatest Overweight (x) 1 | . . 1 Average Overweight (x) . | . . . Largest Inventory Capacity 15 | 8 15 15 Average Capacity 10 | 8 10 15 Most Carried 15 | 6 15 15 Average Carried 9 | 6 9 14 Final Capacity 15 | 8 15 15 Final Carried 15 | 6 15 13 Class Distribution -------------------- 100% | Mutant Dominant Class ---------------- Mutant | -10/Materials Mutant | -10/Mines Resources | -11 -10 -10 ----------- Run | Yrd Mat Min Matter Collected 470 | 210 260 . Remotely . | . . . Salvage Created 751 | 150 347 254 Parts 52 | 12 33 7 Haulers Intercepted . | . . . Recyclers Shooed . | . . . Parts Field Recycled . | . . . Retrieved Matter . | . . . Parts Self-Destructed . | . . . Prevented . | . . . Kills | -11 -10 -10 ------- Run | Yrd Mat Min Combat Hostiles Destroyed 13 | . 9 4 Guns 9 | . 9 . Cannons 4 | . . 4 Classes Destroyed 8 | 2 5 1 Worker 2 | . 2 . Builder 1 | . 1 . Tunneler 3 | 3 . . Recycler 3 | 1 1 1 Operator 1 | . 1 . Watcher 3 | . 3 . Swarmer 9 | . 9 . Grunt 4 | . . 4 Best Kill Streak 5 | 2 5 2 Combat Bots Only 5 | . 5 2 Max Kills in Single Turn 2 | 1 1 2 Gunslinging . | . . . Exploded . | . . . Melee . | . . . Uniques/NPCs Destroyed . | . . . Combat | -11 -10 -10 -------- Run | Yrd Mat Min Hostile Shots Fired 47 | . 27 20 Missed 8 | . 7 1 Damage Taken 1224 | . 166 1058 Core 263 | . 19 244 Absorbed by Shields . | . . . Regen/Repaired (Parts) 28 | . 28 . Core Remaining (%) 100 | 100 . . Volleys Fired 42 | 5 27 10 Largest 2 | 2 2 2 Hottest 112 | 90 112 112 Shots Fired 82 | 10 54 18 Gun 54 | 10 44 . Cannon 28 | . 10 18 Launcher . | . . . Special . | . . . Kinetic . | . . . Thermal 54 | 10 44 . Explosive . | . . . Electromagnetic 28 | . 10 18 Robot Hit Streak 9 | 4 8 9 Robot Miss Streak 5 | 1 5 2 Penetration Max . | . . . Secondary Targets 1 | . 1 . Max Gunslinging Chain 1 | . 1 . Shots Hit Robots 44 | 7 26 11 Core Hits 29 | 5 17 7 Critical Kills . | . . . Critical Parts Destroyed . | . . . Critical Strikes 3 | . 2 1 Burn 1 | . 1 . Corrupt 2 | . 1 1 Melee Attacks . | . . . Impact . | . . . Slashing . | . . . Piercing . | . . . Sneak Attacks . | . . . Combat Hostiles . | . . . Follow-up Attacks . | . . . Damage Inflicted 1011 | 95 512 404 Guns 409 | 95 314 . Cannons 460 | . 198 262 Explosions 142 | . . 142 Melee . | . . . Ramming . | . . . Kinetic . | . . . Thermal 551 | 95 314 142 Explosive . | . . . Electromagnetic 460 | . 198 262 Impact . | . . . Slashing . | . . . Piercing . | . . . Highest Corruption 8 | . . 8 Average Corruption 8 | . . 8 Corruption Purged . | . . . Corruption Blocked . | . . . Overload Shots . | . . . Overflow Damage . | . . . Projectiles . | . . . Explosions . | . . . Melee . | . . . Knockbacks . | . . . Impact . | . . . Kinetic . | . . . Secondary . | . . . Self-Inflicted Damage . | . . . Shots . | . . . Rammed . | . . . Targets Rammed . | . . . Kicked . | . . . Crushed . | . . . Highest Temperature 306 | 90 306 180 Average Temperature 97 | 37 115 71 Received Heat Transfer 57 | . . 57 Siege Activations . | . . . Robots Corrupted . | . . . Combat Hostiles . | . . . Parts Fried 4 | . 4 . Impact Corruptions . | . . . Robots Melted . | . . . Combat Hostiles . | . . . Parts Melted . | . . . Heat Transferred 1261 | 260 851 150 Parts Sabotaged . | . . . Parts Stolen . | . . . Parts Stripped . | . . . Power Chain Reactions 2 | . . 2 Alert | -11 -10 -10 ------- Run | Yrd Mat Min Peak Influence 149 | 20 149 129 Initial 13 | . 13 3 Average 33 | 11 31 60 Maximum Alert Level . | . . . Low Security (%) 100 | 100 100 100 Level 1 . | . . . Level 2 . | . . . Level 3 . | . . . Level 4 . | . . . Level 5 . | . . . High Security . | . . . Max Security . | . . . Squads Dispatched . | . . . Investigation . | . . . Extermination . | . . . Reinforcement . | . . . Assault . | . . . Garrison . | . . . Intercept . | . . . Searches Triggered . | . . . Construction Impeded . | . . . Haulers Reinforced . | . . . Active Scanning Responses . | . . . Cargo Convoy Interrupts . | . . . Stealth | -11 -10 -10 --------- Run | Yrd Mat Min Distress Signals . | . . . Communications Jammed . | . . . Distress Signals . | . . . Times Spotted 26 | . 14 12 Peak Tracking Total 12 | . 3 12 Tactical Retreats . | . . . Traps | -11 -10 -10 ------- Run | Yrd Mat Min Traps Triggered . | . . . Indirectly . | . . . Trap Hack Attempts . | . . . Triggered . | . . . Disarmed . | . . . Reprogrammed . | . . . Reused . | . . . Traps Extracted . | . . . Installed . | . . . Triggered . | . . . Machines | -11 -10 -10 ---------- Run | Yrd Mat Min Machines Disabled 1 | . 1 . Max in Single Turn 1 | . 1 . Machines Repaired . | . . . Machines Dismantled . | . . . Machines Sabotaged . | . . . Overloaded Fab Kills . | . . . Hacking | -11 -10 -10 --------- Run | Yrd Mat Min Machines Accessed 8 | . 8 . Terminals 7 | . 7 . Fabricators . | . . . Repair Stations 1 | . 1 . Recycling Units . | . . . Scanalyzers . | . . . Garrison Access . | . . . Total Hacks 19 | . 19 . Successful 14 | . 14 . Failed 4 | . 4 . Catastrophic 1 | . 1 . Database Lockouts 1 | . 1 . Manual 11 | . 11 . Terminals 17 | . 17 . Fabricators . | . . . Repair Stations 2 | . 2 . Recycling Units . | . . . Scanalyzers . | . . . Garrison Access . | . . . Terminal Hacks 7 | . 7 . Robot Analysis 2 | . 2 . Prototype ID Bank 1 | . 1 . Terminal Index 1 | . 1 . Unreport Threat 1 | . 1 . Locate Traps 1 | . 1 . Hauler Manifests 1 | . 1 . Fabricator Hacks . | . . . Repair Station Hacks 2 | . 2 . Scan Component 1 | . 1 . Repair 1 | . 1 . Recycling Unit Hacks . | . . . Scanalyzer . | . . . Garrison Access Hacks . | . . . Unauthorized Hacks 5 | . 5 . Terminals 5 | . 5 . Assimilate 1 | . 1 . Botnet 2 | . 2 . Operators 1 | . 1 . Skim 1 | . 1 . Fabricators . | . . . Repair Stations . | . . . Recycling Units . | . . . Scanalyzers . | . . . Garrison Access . | . . . Data Cores Recovered 1 | . 1 . Used . | . . . Hacking Detections 6 | . 6 . Full Trace Events 2 | . 2 . Feedback Events . | . . . Feedback Blocked . | . . . Robot Schematics Acquired . | . . . Robots Built . | . . . Authchips . | . . . Time . | . . . Total Robot Build Rating . | . . . Part Schematics Acquired . | . . . Parts Built . | . . . Authchips . | . . . Time . | . . . Total Part Build Rating . | . . . Parts Repaired 1 | . 1 . Time 32 | . 32 . Parts Recycled . | . . . Recycled Matter . | . . . Retrieved Matter . | . . . Retrieved Components . | . . . Parts Scanalyzed . | . . . Part Schematics Acquired . | . . . Parts Damaged . | . . . Bothacking | -11 -10 -10 ------------ Run | Yrd Mat Min Used RIF Installer . | . . . Robots Hacked . | . . . Non-combat . | . . . Combat . | . . . Robot Hacks Applied . | . . . Relay Couplers Released . | . . . Fabnet Peak Effective % . | . . . Robots Rewired . | . . . Allies Hacked . | . . . Hacks Repelled . | . . . Allies | -11 -10 -10 -------- Run | Yrd Mat Min Total Allies 1 | . 1 . Largest Group 1 | . 1 . Highest-Rated Group 10 | . 10 . Highest-Rated Ally 10 | . 10 . Total Orders . | . . . Ally Attacks . | . . . Total Damage . | . . . Kills . | . . . Allies Corrupted . | . . . Allies Melted . | . . . Intel | -11 -10 -10 ------- Run | Yrd Mat Min Robot Analysis Total 2 | . 2 . Derelict Logs Recovered 1 | . . 1 Drone Launches . | . . . Drone Recoveries . | . . . Exploration | -11 -10 -10 ------------- Run | Yrd Mat Min Turns Passed 1682 | 70 1453 159 Spaces Moved 928 | 16 841 71 Core . | . . . Treads 803 | . 732 71 Legs 125 | 16 109 . Wheels . | . . . Hover . | . . . Flight . | . . . Fastest Speed 120 | 120 120 160 Average Speed 154 | 120 154 161 Slowest Speed 240 | 120 160 240 Overloaded Moves . | . . . Propulsion Burnouts . | . . . Robots Hopped . | . . . Cave-ins Triggered 2 | . . 2 Exploration Rate (%) 44 | 3 97 32 Regions Visited 2 Branch Regions 1 Pre-discovered Areas . | . . . Known Exits Taken . | . . . Unknown Exits Taken 2 | 1 1 . Scrap Searched . | . . . Spaces Dug . | . . . Terrain Destroyed 6 | . . 6 Melee . | . . . Projectile . | . . . AOE 6 | . . 6 Terrain Rammed . | . . . Walls Destroyed . | . . . Machines Disabled . | . . . Actions | -11 -10 -10 --------- Run | Yrd Mat Min Total 1100 | 56 946 98 Wait 84 | 35 36 13 Move 925 | 15 840 70 Hop . | . . . Pick Up 19 | . 18 1 Fast Attach 4 | 1 3 . Attach 6 | . 4 2 Detach . | . . . Swap 4 | . 4 . Drop 15 | . 14 1 Fire 42 | 5 27 10 Melee . | . . . Ram . | . . . Kick . | . . . Crush . | . . . Escape Stasis 1 | . . 1 Rewire . | . . . Trap . | . . . Miscellaneous . | . . . Route ------- -11/Scrapyard -10/Materials (discovered 5 exits: [*Mat x3] / [*Min x2]) -10/Mines (discovered 1 exit: [*Mat]) History --------- Turn | Location | Event 1 | -11/Scrapyard | Discovered new exit (range 3) 71 | -11/Scrapyard | Entered Materials 259 | -10/Materials | Central database locked down 267 | -10/Materials | Discovered new exit (range 12) 310 | -10/Materials | Build established: Mutant 374 | -10/Materials | Discovered new exit (range 10) 447 | -10/Materials | Discovered new exit (range 14) 567 | -10/Materials | Discovered new exit (range 16) 672 | -10/Materials | Repaired Beam Rifle 1068 | -10/Materials | Discovered new exit (range 15) 1524 | -10/Materials | Entered Mines 1552 | -10/Mines | Learned Materials security intel 1665 | -10/Mines | Assembled infested the area 1670 | -10/Mines | Assisted by a Guerilla fighting off Assembled 1670 | -10/Mines | Discovered new exit (range 7) 1680 | -10/Mines | Crushed by falling debris 1680 | -10/Mines | Core integrity fell below 50% 1680 | -10/Mines | Crushed by falling debris 1682 | -10/Mines | Core integrity fell below 20% 1683 | -10/Mines | Destroyed by D-53 Grenadier with Mini Grenade Launcher Last Messages --------------- 01669_ Lgt. EM Pulse Cannon destroyed. 01670_ A derelict emerges from the shadows: "You need to get out of here! I've been tracking a group of Assembled to figure out where they're coming from, and they're closing on this area, come on!" 01670_ D-53 Grenadier IFF system glitched. 01670_ EXIT=FOUND 01670_ Ion Engine destroyed. 01670_ 7X-IP1(h) destroyed. 01674_ The unstable cave ceiling collapses. 01679_ Lgt. EM Pulse Cannon destroyed. 01680_ The unstable cave ceiling collapses. 01680_ Crushed by falling debris. 01680_ Structural Scanner destroyed. 01680_ System corrupted by crushing effect (+5). 01680_ Lgt. Treads destroyed. 01680_ System corrupted by crushing effect (+3). 01680_ The unstable cave ceiling collapses. 01680_ Crushed by falling debris. 01681_ Lgt. Treads destroyed. Map ----- +----------------------------------------------------+ | ??????????????????????????????????????? | | ??????????????????????????????????????? | | ??????????????????????????????????????? | | ??????????????????????????????????????? | | ??????????????????????????????????????? | | ??????????????????????????????????????? | | ??????????????????????????????????????? | | ??????????????????????????????????????? | | ??????????????????????????????????????? | | ??????????????????????????????????????? | | ??????????????????????????????????????? | | ???????????## ????????????????????????? | | ???????????## ????????????? ????????? | | ???????????## "?????????## ????????? | | ???????????## "????????### ????????? | | ????????????? ???????### ?????????? | | ????????????# ####a ## ??????? | | ??????????#### ######## ### ????? | | ??????????#### ## ## a ##????? | | ?????????### # a ##????? | | ????????##### ##? ##????? | | ????????### d a ### ##????? | | ????????## d a ### ##????? | | ????????## ## ##????? | | ????????## # ### ###???? | | ????????### < @ ####### ###???? | | ?????????# ###### ##???? | | ?????????# #######% ##???? | | ?????????## #### ### ##???? | | ??????????##### #### ###???? | | ?????????????#### ### ##????? | | ???????????????## u %[% ##????? | | ???????????????## = ######## | | ???????????????#####;"" ###%######## | | ???????????????######### #### | | ??????????????????############ | | ??????????????????????################ | | ????????????????????????????########## | | ????????????????????????????????????## | | ????????????????????????????????????## | | ????????????????????????????????????### | | ????????????????????????????????????### | | ??????????????????????????????????????? | | ??????????????????????????????????????? | | ??????????????????????????????????????? | | ??????????????????????????????????????? | | ??????????????????????????????????????? | | ??????????????????????????????????????? | | ??????????????????????????????????????? | | ??????????????????????????????????????? | +----------------------------------------------------+ Best States ------------- Heat Dissipation 25 Energy Generation 10 Energy Capacity 250 Matter Stores 300 Matter Capacity 300 Sight Range 16 Terrain Scan Density 10 Evasion (%) 55 Recoil Reduction 2 Item Schematics ----------------- None Robot Schematics ------------------ None Fabricated ------------ Nothing Alien Tech Used ----------------- None Achievements -------------- None Challenges ------------ None Game ------ Seed MachineBiocellMonowheel Manual? 0 Play Time 00:14:20 Cumulative 448.9 hours Start 2024.12.14 @ 00:11:54 End 2024.12.14 @ 01:43:44 Sessions 2 Manual Loads 0 Difficulty Rogue Special Mode None Game No. 233 Rogue 89 Adventurer 144 Explorer 0 Win Type - Total 8 Types 4/0/3/1/0/0/0/0/0 Lore% 61 Gallery% 80 Achievement% 67 Wizard Run 0 Options --------- Layout 0 ASCII 0 Keyboard 0 Movement Mouse Keybinds 0 Fullscreen 2 Font 20/SmallcapsGlow Map View 66x50 Zoom Use 0% Tactical HUD 1 Map Filters NONE Filters NONE Steam X RUN: 2b41dd6a-5fbb-4f32-812a-32bc8fe10da8